[Event "13th Chennai Open 2022"]
[Site "Chennai"]
[Date "2022.06.22"]
[Round "5.18"]
[White "Kunal, M.."]
[Black "Madhavan R Munjanattu"]
[Result "1/2-1/2"]
[ECO "C42"]
[WhiteElo "2277"]
[BlackElo "1779"]
[Annotator "TA"]
[PlyCount "64"]
[EventDate "2022.06.19"]
[EventType "swiss"]
[EventCountry "IND"]
[SourceTitle "playchess.com"]
[Source "ChessBase"]
[SourceQuality "1"]
[TimeControl "5400+30"]

{[%evp 20,64,11,10,21,14,16,8,30,0,5,5,0,0,0,0,10,0,0,0,0,0,0,0,0,-20,-31,-34,-29,-35,-49,-30,-18,-58,0,0,0,0,0,-18,0,0,0,0,0,0,0]} 1. e4 {[%emt 0:00:04]} e5 {[%emt 0:00:03]} 2. Nf3 {[%emt 0:00:05]} Nf6 {[%emt 0:00:03]} 3. Nxe5 {[%emt 0:00:06]} d6 {[%emt 0:00:01]} 4. Nf3 {[%emt 0:00:08]} Nxe4 {[%emt 0:00:05]} 5. d4 {[%emt 0:00:06]} d5 {[%emt 0:00:04]} 6. Bd3 {[%emt 0:00:05]} Bd6 {[%emt 0:00:09]} 7. O-O {[%emt 0:00:08]} O-O {[%emt 0:00:22]} 8. c4 {[%emt 0:00:06]} c6 {[%emt 0:00:10]} 9. Nc3 {[%emt 0:08:56]} Bf5 {[%emt 0:00:51]} 10. Re1 {[%emt 0:03:51]} Nxc3 {[%emt 0:03:00]} 11. bxc3 {[%emt 0:00:07]} Bxd3 {[%emt 0:00:03] C42: Petroff Defence: 3 Nxe5 and unusual White 3rd moves.} 12. Qxd3 {[%emt 0:00:08] Threatening Ng5.} dxc4 {[%emt 0:00:02]} 13. Qxc4 {[%emt 0:00:12]} h6 {[%emt 0:00:01] [#]} 14. a4 $146 {[%emt 0:03:59]} ({Predecessor:} 14. h3 Nd7 15. a4 Nb6 16. Qb3 Qc7 17. c4 c5 18. d5 Nd7 19. Bb2 b6 20. Re3 {0-1 (44) Rodchenkov,S (2346)-Riehle,M (2347) Chess.com INT 2021}) 14... Nd7 {[%emt 0:01:32]} 15. a5 {[%emt 0:01:07]} Qc7 {[%emt 0:00:15]} 16. Ba3 {[%emt 0:01:45]} Bxa3 {[%emt 0:04:02]} 17. Rxa3 {[%emt 0:00:06]} Qd6 {[%emt 0:00:25]} 18. Ra2 {[%emt 0:04:08]} Rfe8 {[%emt 0:01:49]} 19. Rae2 {[%emt 0:00:11]} Rxe2 {[%emt 0:00:11]} 20. Rxe2 {[%emt 0:00:07]} b5 {[%emt 0:02:07]} 21. Qb3 {[%emt 0:18:11]} Rb8 {[%emt 0:03:07]} 22. g3 {[%emt 0:02:19]} c5 {[%emt 0:00:55]} 23. Ne5 {[%emt 0:14:35]} Nxe5 {[%emt 0:02:13]} 24. Rxe5 {[%emt 0:06:19]} cxd4 {[%emt 0:00:11]} 25. cxd4 $15 {[%emt 0:00:04][%mdl 4096] Endgame KQR-KQR} b4 {[%emt 0:00:22]} 26. Rc5 {[%emt 0:05:04]} Rb7 {[%emt 0:03:43]} ({Black should play} 26... g5 $15) 27. Rc8+ $11 {[%emt 0:03:23] The position is equal.} Kh7 {[%emt 0:00:48]} 28. d5 {[%emt 0:00:04]} Rd7 {[%emt 0:04:59]} 29. Rc1 {[%emt 0:04:41]} g6 {[%emt 0:09:19]} 30. h4 {[%emt 0:00:35]} Qxd5 {[%emt 0:06:27]} 31. Qxb4 {[%emt 0:00:07]} Rb7 {[%emt 0:00:04]} 32. Qc5 {[%emt 0:00:39]} Rb5 {[%emt 0:00:59] Weighted Error Value: White=0.08 (flawless) /Black=0.06 (flawless)} 1/2-1/2

[Event "13th Chennai Open 2022"]
[Site "Chennai"]
[Date "2022.06.22"]
[Round "6.1"]
[White "Baghdasaryan, Vahe"]
[Black "Nitin, S.."]
[Result "0-1"]
[ECO "B99"]
[WhiteElo "2267"]
[BlackElo "2399"]
[Annotator "TA"]
[PlyCount "100"]
[EventDate "2022.06.19"]
[EventType "swiss"]
[EventCountry "IND"]
[SourceTitle "playchess.com"]
[Source "ChessBase"]
[SourceQuality "1"]
[TimeControl "5400+30"]

{[%evp 22,100,60,45,47,29,29,59,39,0,0,-145,-161,-189,-209,-222,-202,-397,-321,-335,-315,-307,-300,-283,-246,-443,-415,-520,-527,-502,-496,-2495,-2280,-2280,-2868,-3220,-2787,-2429,-2379,-3530,-2292,-1512,-1287,-1301,-803,-732,-658,-5057,-1426,-1353,-920,-1423,-1306,-1224,-1037,-5072,-5057,-5072,-5065,-5065,-5065,-5065,-5065,-5065,-5065,-1975,-1193,-1171,-1122,-1122,-1114,-1016,-712,-647,-523,-562,-419,-2060,-729,-1008,-1008]} 1. e4 {[%emt 0:06:10]} c5 {[%emt 0:00:33]} 2. Nf3 {[%emt 0:00:08]} d6 {[%emt 0:00:08]} 3. d4 {[%emt 0:00:07]} cxd4 {[%emt 0:00:05]} 4. Nxd4 {[%emt 0:00:03]} Nf6 {[%emt 0:00:12]} 5. Nc3 {[%emt 0:00:04]} a6 {[%emt 0:00:08]} 6. Bg5 {[%emt 0:00:14]} e6 {[%emt 0:00:19]} 7. f4 {[%emt 0:00:12]} Be7 {[%emt 0:00:14]} 8. Qf3 {[%emt 0:00:17]} Qc7 {[%emt 0:00:14]} 9. O-O-O {[%emt 0:00:20]} Nbd7 {[%emt 0:00:09]} 10. g4 {[%emt 0:00:21][%cal Bg2g4,Bg4g5][%mdl 32]} h6 {[%emt 0:00:23]} 11. Bxf6 {[%emt 0:00:16]} Bxf6 {[%emt 0:00:56]} 12. h4 {[%emt 0:00:18]} Nb6 $1 {[%emt 0:01:04][%mdl 4] is more profitable than 12...Qb6 at the moment. B99: Sicilian Najdorf: 6 Bg5 e6 7 f4 Be7 8 Qf3 Qc7 9 0-0-0 Nbd7.} 13. g5 {[%emt 0:13:12]} Bxd4 {[%emt 0:00:16]} 14. Rxd4 {[%emt 0:00:02]} Qc5 {[%emt 0:00:08] White is slightly better.} 15. Qd3 {[%emt 0:10:45] Hoping for g6.} hxg5 {[%emt 0:09:18] [#]} 16. Rg1 $146 {[%emt 0:26:09]} (16. Rxd6 Nd5 $1 17. Rxd5 exd5 18. fxg5 dxe4 19. Qxe4+ Be6 $15) (16. fxg5 $11 Rxh4 17. Rxh4 Qxg5+ 18. Kb1 Qxh4 19. Rxd6 Qe1+ 20. Nd1) ({Predecessor:} 16. b4 Qc7 17. fxg5 Ke7 18. Be2 e5 19. Nd5+ Nxd5 20. Rc4 Qb6 21. exd5 Bd7 22. Qf3 {0-1 (54) Sankalp,G (2468)-Alsina Leal,D (2497) Barbera del Valles 2021}) 16... gxf4 $17 {[%emt 0:15:24]} (16... Rxh4 17. Rxg5 Qc7 18. Rxg7 $18 (18. Rxd6 g6 $16)) 17. Rg5 {[%emt 0:04:25]} e5 {[%emt 0:08:34]} 18. Rxd6 {[%emt 0:00:16] [#] aiming for Rd8+.} Be6 $1 {[%emt 0:01:02]} ({And not} 18... O-O 19. Kb1 $17) 19. Be2 $2 {[%emt 0:20:14]} (19. Qd1) 19... Ke7 {[%emt 0:20:10]} 20. Rxb6 {[%emt 0:00:08]} Qxb6 {[%emt 0:00:27] Chess con chili.} 21. Nd5+ {[%emt 0:00:08]} Bxd5 {[%emt 0:00:23]} 22. Qxd5 {[%emt 0:00:02]} Kf8 {[%emt 0:10:40]} ({Weaker is} 22... Rxh4 23. Qxe5+ Kd7 24. Bg4+ Rxg4 25. Qd5+ Ke7 26. Qe5+ (26. Rxg4 $2 {perishes.} Qe3+ 27. Qd2 Rh8 $19) 26... Qe6 27. Qxe6+ fxe6 28. Rxg4 $17) 23. Qxe5 $2 {[%emt 0:03:49]} (23. Bc4 {was called for.} Qe3+ 24. Kd1 Qd4+ 25. Qxd4 exd4 26. Rf5) 23... Qe3+ $19 {[%emt 0:05:09]} 24. Kd1 {[%emt 0:00:07]} Rd8+ {[%emt 0:01:16]} 25. Bd3 {[%emt 0:00:27]} f6 {[%emt 0:05:48][%cal Bf7f6,Bf6g5][%mdl 32]} 26. Qc7 {[%emt 0:01:27]} (26. Qc5+ $142 Qxc5 27. Rxc5) 26... Rxd3+ {[%emt 0:00:14]} 27. cxd3 {[%emt 0:00:01]} Qxd3+ {[%emt 0:00:10][%mdl 4096] Endgame KQR-KQR} 28. Kc1 {[%emt 0:00:01]} Qe3+ {[%emt 0:00:34]} 29. Kd1 {[%emt 0:00:06]} Qd4+ {[%emt 0:00:41]} 30. Kc1 {[%emt 0:00:04]} fxg5 {[%emt 0:00:22]} 31. Qc8+ {[%emt 0:00:12]} Kf7 {[%emt 0:00:46]} 32. Qxh8 {[%emt 0:00:03] KQ-KQ} Qc4+ {[%emt 0:03:16]} 33. Kd2 {[%emt 0:00:17]} Qxe4 {[%emt 0:02:05]} 34. hxg5 {[%emt 0:02:10]} Qd5+ {[%emt 0:00:12]} (34... Kg6 $142 35. Qh2 Qd4+ 36. Kc2 f3) 35. Ke1 {[%emt 0:01:02]} Qxg5 {[%emt 0:00:24] And now ...f3 would win.} 36. Qb8 {[%emt 0:00:07]} Qg1+ {[%emt 0:01:25]} 37. Ke2 {[%emt 0:02:49]} Qe3+ {[%emt 0:00:16]} 38. Kf1 {[%emt 0:00:11]} Qf3+ {[%emt 0:00:49]} 39. Kg1 {[%emt 0:00:05]} Qe4 {[%emt 0:00:46]} 40. Kf2 {[%emt 0:02:30]} Kg6 {[%emt 0:01:37]} 41. Qd6+ {[%emt 0:00:09]} Kh7 {[%emt 0:00:17]} 42. Qc7 {[%emt 0:00:14]} Qe3+ {[%emt 0:02:02]} 43. Kf1 {[%emt 0:00:05]} Qf3+ {[%emt 0:00:35]} 44. Ke1 {[%emt 0:02:33]} Qg3+ {[%emt 0:01:11]} 45. Kf1 {[%emt 0:01:19]} Qh3+ {[%emt 0:01:27]} 46. Ke1 {[%emt 0:00:14]} Qh1+ {[%emt 0:02:35]} 47. Kf2 {[%emt 0:01:16]} Qe4 {[%emt 0:01:14] Strongly threatening ...Qe3+.} 48. Qf7 {[%emt 0:00:26]} b5 {[%emt 0:01:23]} 49. b4 {[%emt 0:00:22]} (49. Qh5+ $142 Kg8 50. Qc5) 49... Qg6 {[%emt 0:00:33]} (49... Qc2+ $142 50. Kf3 Qd3+ 51. Kf2 Qe3+ 52. Kg2 Qe2+ 53. Kh3 Qf3+ 54. Kh2 Qg3+ 55. Kh1 Qg4) 50. Qe7 {[%emt 0:00:38]} Qg3+ {[%emt 0:00:12] Black took control after the opening.  Weighted Error Value: White=1.40/Black=0.55} 0-1

[Event "13th Chennai Open 2022"]
[Site "Chennai"]
[Date "2022.06.22"]
[Round "6.2"]
[White "Savchenko, Boris"]
[Black "Stupak, Kirill"]
[Result "1-0"]
[ECO "C02"]
[WhiteElo "2524"]
[BlackElo "2440"]
[Annotator "TA"]
[PlyCount "111"]
[EventDate "2022.06.19"]
[EventType "swiss"]
[EventCountry "IND"]
[SourceTitle "playchess.com"]
[Source "ChessBase"]
[SourceQuality "1"]
[TimeControl "5400+30"]

{[%evp 16,111,-6,0,0,-9,0,0,0,0,0,0,0,0,0,0,0,0,19,15,27,31,52,29,44,34,41,39,50,32,46,43,29,25,74,63,64,68,58,51,57,88,87,35,18,-132,-159,-251,-247,-259,-249,-245,-237,-236,-235,-232,-199,-160,-152,-221,-33,-33,-34,-34,-35,-166,-35,-69,-43,-39,149,152,153,98,195,116,161,127,137,133,171,160,168,152,166,145,558,533,550,535,535,516,508,294,1269,1235,869,904]} 1. e4 {[%emt 0:00:43]} e6 {[%emt 0:00:16]} 2. d4 {[%emt 0:00:14]} d5 {[%emt 0:00:01]} 3. e5 {[%emt 0:00:08]} c5 {[%emt 0:00:04]} 4. c3 {[%emt 0:00:08]} Qb6 {[%emt 0:00:02]} 5. Nf3 {[%emt 0:00:07]} Nc6 {[%emt 1:32:37]} 6. a3 {[%emt 0:01:06]} c4 {[%emt 0:00:00]} 7. Nbd2 {[%emt 0:00:08]} Na5 {[%emt 0:00:00]} 8. Rb1 {[%emt 0:00:41]} Bd7 {[%emt 0:00:00]} 9. Be2 {[%emt 0:00:11]} Ne7 {[%emt 0:00:00] 9...Qc7 gains popularity. C02: French: Advance Variation.} 10. h4 {[%emt 0:00:11]} Qc7 {[%emt 0:00:00]} 11. h5 {[%emt 0:01:02][%cal Oh5h6]} h6 {[%emt 0:00:00] The position is equal.} 12. Nf1 {[%emt 0:00:08]} Nc8 {[%emt 0:00:00]} 13. Bf4 {[%emt 0:01:46][%cal Bc1f4,Bf4g3,Bg3h4][%mdl 32]} Nb6 {[%emt 0:00:00]} 14. Bg3 {[%emt 0:00:13]} Be7 {[%emt 0:00:00] [#]} 15. Qc1 $146 {[%emt 0:14:15]} ({Predecessor:} 15. Nh4 Nb3 16. Nd2 Ba4 17. Nxb3 Bxb3 18. Qd2 Na4 19. f4 O-O-O 20. O-O Kb8 21. Bg4 {½-½ (65) Dauletova,G (2285)-Tomilova,E (2338) Chess.com INT 2021}) 15... Ba4 {[%emt 0:00:00]} 16. Bd1 {[%emt 0:05:14]} Qc6 {[%emt 0:00:00]} 17. Bh4 {[%emt 0:04:19]} Bxd1 {[%emt 0:00:00]} 18. Qxd1 {[%emt 0:02:12]} Qa4 {[%emt 0:00:00]} 19. Qe2 {[%emt 0:07:16]} Nc6 {[%emt 0:00:00]} 20. Ne3 {[%emt 0:00:50]} O-O-O {[%emt 0:00:00]} 21. O-O {[%emt 0:05:05]} Kb8 {[%emt 0:00:00]} 22. Bxe7 {[%emt 0:03:39]} Nxe7 {[%emt 0:08:30]} 23. Nd2 {[%emt 0:00:50]} Rc8 {[%emt 0:00:00]} 24. Rfc1 {[%emt 0:11:13]} Qd7 {[%emt 0:00:00]} (24... Qe8 $11 {feels stronger.}) 25. b3 $1 $16 {[%emt 0:07:11]} cxb3 {[%emt 0:00:00]} 26. Nxb3 {[%emt 0:00:10]} Na4 {[%emt 0:00:00] Prevents Nc5.} 27. c4 {[%emt 0:01:17]} dxc4 {[%emt 0:00:00]} 28. Nxc4 {[%emt 0:00:14]} Qd5 {[%emt 0:00:00] [#]} 29. Qd3 {[%emt 0:15:27]} (29. Nd6 $2 Rxc1+ 30. Nxc1 Nc3 $19) (29. Qd2 $1 $16) 29... Nf5 $14 {[%emt 0:00:00][%cal Be7f5,Bf5h4,Bh4f3,Bf3e5,Be5d3][%mdl 32]} 30. g4 {[%emt 0:12:43]} ({White should play} 30. Nd6 $11 Nxd6 31. exd6) 30... Nh4 $17 {[%emt 0:00:00][%csl Gh4][%cal Rd5g2]} 31. Ne3 {[%emt 0:00:05] Against Qg2+} (31. Kf1 $17) 31... Nf3+ $19 {[%emt 0:00:00]} 32. Kf1 {[%emt 0:00:09]} Nxe5 $1 {[%emt 0:00:00]} 33. Nxd5 {[%emt 0:03:05]} Nxd3 {[%emt 0:00:00]} 34. Rxc8+ {[%emt 0:00:16]} Rxc8 {[%emt 0:00:00]} 35. Ne3 {[%emt 0:00:22]} Rc3 {[%emt 0:00:00]} 36. d5 {[%emt 0:00:09]} exd5 {[%emt 0:00:00]} 37. Nd4 {[%emt 0:01:04]} (37. Nxd5 $17 Rc2 38. Nd4 Rxf2+ 39. Kg1) 37... g6 $2 {[%emt 0:00:00]} ({Better is} 37... Rxa3 $19 38. Nxd5 Nac5 39. Nc6+ Kc8 40. Nce7+ Kd7) 38. g5 $1 $15 {[%emt 0:00:24]} hxg5 {[%emt 0:00:00]} 39. h6 {[%emt 0:01:05]} Nb6 {[%emt 0:00:47] ...Rc8 is the strong threat.} (39... Rxa3 $2 40. h7 Rc3 41. h8=Q+ $18) 40. Ng4 {[%emt 0:02:26]} (40. Nf3 $1 $15) 40... Rc8 {[%emt 0:00:58]} (40... Rxa3 $2 41. Nb5 Nc4 42. h7 $18) (40... Nf4 $1 $19 {Threatens to win with ...Rh3.} 41. f3 Rc8) 41. Nf3 $1 {[%emt 0:01:39]} Nd7 {[%emt 0:04:52] White must now prevent ...f6.} (41... Rh8 $5 {[%cal Rf7f5]} 42. Nxg5 f5 $15) 42. Nxg5 {[%emt 0:00:44]} f6 {[%emt 0:02:41]} (42... f5 $15 {keeps the upper hand.} 43. Rd1 Nf4) 43. Nf7 $1 $16 {[%emt 0:01:14]} Nf8 {[%emt 0:00:40]} 44. Nxf6 {[%emt 0:00:26]} (44. Nd6 $142 $1 {[%cal Rd6c8]} Rc1+ 45. Rxc1 Nxc1 46. Nxf6) 44... Rc7 {[%emt 0:00:30]} (44... Rc2 $16 45. Kg1 b6) 45. Ng5 {[%emt 0:00:24]} (45. h7 $2 Nxh7 46. Nxh7 Rxf7 $19) (45. Nd6 $1 $18) 45... Rc2 {[%emt 0:00:07]} 46. Ng4 {[%emt 0:00:42][%mdl 1024] White has strong compensation.} (46. Nxd5 $2 Rxf2+ 47. Kg1 Rf5 $19) 46... Rc4 {[%emt 0:00:52] [#]} 47. f3 {[%emt 0:00:14]} Rc3 {[%emt 0:00:29]} 48. Rd1 {[%emt 0:00:41]} (48. h7 $6 Nxh7 49. Nxh7 Rxa3 $11) 48... Kc8 {[%emt 0:00:27]} 49. Nf6 {[%emt 0:00:32]} ({But not} 49. h7 $6 Nxh7 50. Nxh7 Rxa3 $14) 49... Rxa3 {[%emt 0:00:32]} 50. Nxd5 {[%emt 0:00:27][%cal Og5e6]} Ne5 $2 {[%emt 0:01:05][%mdl 8192] [#]} (50... b5 $16 {is a better chance.} 51. Ke2 (51. h7 Nxh7 52. Nxh7 Nf4 $16) 51... Ne5) 51. Re1 $1 $18 {[%emt 0:00:37]} Nxf3 {[%emt 0:00:00]} 52. Re8+ {[%emt 0:00:26]} Kd7 {[%emt 0:01:00]} 53. Nf6+ {[%emt 0:00:07]} Kc6 {[%emt 0:00:00]} 54. Ne6 {[%emt 0:00:49]} ({Not} 54. h7 Nxh7 55. Ngxh7 a5 $11) 54... Nxe6 $2 {[%emt 0:00:27]} (54... Nh7) 55. Rxe6+ {[%emt 0:00:25]} Kb5 {[%emt 0:00:52]} 56. h7 {Quite a comeback for White.  Weighted Error Value: White=0.22 (precise) /Black=0.45} 1-0

[Event "13th Chennai Open 2022"]
[Site "Chennai"]
[Date "2022.06.22"]
[Round "6.3"]
[White "Tran, Tuan Minh"]
[Black "Fedorov, Alexei"]
[Result "1/2-1/2"]
[ECO "E73"]
[WhiteElo "2533"]
[BlackElo "2529"]
[Annotator "TA"]
[PlyCount "71"]
[EventDate "2022.06.19"]
[EventType "swiss"]
[EventCountry "IND"]
[SourceTitle "playchess.com"]
[Source "ChessBase"]
[SourceQuality "1"]
[TimeControl "5400+30"]

{[%evp 11,71,44,38,30,29,-8,-21,-14,0,9,43,58,50,47,27,0,0,-59,-32,-63,-73,-74,-40,-45,-45,-47,-55,-47,-18,-47,-39,-36,0,0,0,0,0,0,0,0,0,0,0,-17,-17,-27,0,-11,-5,-7,0,-2,0,-4,0,-9,0,-10,0,-32,-33,-62]} 1. d4 {[%emt 0:00:03]} Nf6 {[%emt 0:00:05]} 2. c4 {[%emt 0:00:04]} g6 {[%emt 0:00:14]} 3. Nc3 {[%emt 0:00:04]} Bg7 {[%emt 0:00:04]} 4. e4 {[%emt 0:00:05][%cal Be2e4,Be4e5][%mdl 32]} d6 {[%emt 0:00:04]} 5. Be2 {[%emt 0:00:06]} O-O {[%emt 0:01:27]} 6. Be3 {[%emt 0:00:04]} c5 {[%emt 0:07:49]} 7. dxc5 {[%emt 0:01:55] E73: King's Indian: Averbakh Variation without 6...c5.} Qa5 {[%emt 0:00:06][%csl LRc5,LRe4] [#] White must now prevent ...Nxe4.} 8. Kf1 {[%emt 0:17:32]} ({Reject} 8. cxd6 Nxe4 9. Bd2 (9. dxe7 Re8 $15) 9... Nxc3 10. bxc3 exd6 $15) 8... dxc5 {[%emt 0:11:28]} 9. e5 {[%emt 0:00:10] [#] The position is equal.} Rd8 $146 {[%emt 0:06:25]} ({Predecessor:} 9... Nfd7 10. f4 Nc6 11. Nf3 a6 12. h4 b5 13. h5 bxc4 14. hxg6 hxg6 15. Bxc4 Nb6 {1-0 (26) Elissalt Cardenas,H (2279)-Schill,W (2147) Chess.com INT 2021}) 10. Bd2 {[%emt 0:15:10]} Bh6 {[%emt 0:06:22]} (10... Ng4 $5) 11. Nf3 {[%emt 0:12:04][%cal Bg1f3,Bf3d2,Bd2b3][%mdl 32]} Bxd2 {[%emt 0:10:49]} 12. Nxd2 {[%emt 0:00:07]} Nfd7 {[%emt 0:01:43][%cal Bf6d7,Bd7b6,Bb6a4][%mdl 32]} 13. f4 {[%emt 0:13:11]} Nb6 {[%emt 0:03:02]} 14. Qe1 {[%emt 0:15:43]} ({White should try} 14. a3 $11) 14... Nc6 $1 $15 {[%emt 0:01:44]} 15. Nb3 {[%emt 0:04:01]} Qb4 {[%emt 0:00:16]} 16. Ne4 {[%emt 0:00:11]} Na4 {[%emt 0:17:54]} 17. Nexc5 {[%emt 0:00:07]} Nxc5 {[%emt 0:00:42]} 18. Qxb4 {[%emt 0:00:05][%mdl 64] [#] Remove Defender} Nxb4 {[%emt 0:00:06]} 19. Nxc5 {[%emt 0:00:02]} b6 {[%emt 0:02:08]} (19... Rd2 {with more complications.} 20. Rb1 Bf5 21. Nb3 Rdd8) 20. Nb3 {[%emt 0:00:41]} a5 $1 {[%emt 0:05:24] Hoping for ...a4.} 21. a3 {[%emt 0:00:59]} Nd3 {[%emt 0:02:49]} (21... Nc2 $5 {[%cal Rc2a1]} 22. Rc1 Bf5 $11) 22. Rd1 {[%emt 0:00:07]} Bf5 {[%emt 0:00:18][%cal Bc8f5,Bf5d3,Bd3c4,Bc4b3][%mdl 32] And now ...a4 would win.} 23. Bxd3 {[%emt 0:00:26]} Bxd3+ {[%emt 0:00:25]} 24. Kf2 {[%emt 0:00:16]} Bxc4 {[%emt 0:00:36]} 25. Nd4 {[%emt 0:00:26]} Rac8 {[%emt 0:01:12] Inhibits Nc6.} 26. Rd2 {[%emt 0:03:30]} f6 {[%emt 0:02:01]} 27. Rhd1 {[%emt 0:05:27]} fxe5 {[%emt 0:01:14]} 28. fxe5 {[%emt 0:00:02]} Rf8+ {[%emt 0:01:23]} 29. Nf3 {[%emt 0:03:35]} Bb3 {[%emt 0:01:23]} 30. Re1 {[%emt 0:00:06]} Rc7 {[%emt 0:00:35]} 31. Kg3 {[%emt 0:00:18]} h6 {[%emt 0:06:45]} 32. Nd4 {[%emt 0:00:50]} Bd5 {[%emt 0:00:19]} 33. Ne2 {[%emt 0:00:49]} Bb3 {[%emt 0:00:40]} 34. Nd4 {[%emt 0:01:33]} Bd5 {[%emt 0:00:06]} 35. Nb5 {[%emt 0:00:28]} Rc5 {[%emt 0:00:17]} 36. Nc3 {[%emt 0:08:13] Weighted Error Value: White=0.12 (very precise) /Black=0.08 (flawless)} 1/2-1/2

[Event "13th Chennai Open 2022"]
[Site "Chennai"]
[Date "2022.06.22"]
[Round "6.4"]
[White "Vignesh B"]
[Black "Srijit Paul"]
[Result "1-0"]
[ECO "A80"]
[WhiteElo "2072"]
[BlackElo "2399"]
[Annotator "TA"]
[PlyCount "67"]
[EventDate "2022.06.19"]
[EventType "swiss"]
[EventCountry "IND"]
[SourceTitle "playchess.com"]
[Source "ChessBase"]
[SourceQuality "1"]
[TimeControl "5400+30"]

{[%evp 9,67,16,24,15,17,0,14,13,39,9,6,-4,-10,-17,-16,-20,0,0,15,7,29,14,54,61,113,100,121,96,183,155,438,443,475,199,211,196,208,119,175,158,648,647,683,683,677,658,614,651,680,672,653,672,666,662,650,639,605,472,29985,29988]} 1. Nf3 {[%emt 0:00:09]} f5 {[%emt 0:01:48]} 2. b3 {[%emt 0:02:33]} d6 {[%emt 0:00:13]} 3. d4 {[%emt 0:00:30]} Nf6 {[%emt 0:00:08]} 4. Bb2 {[%emt 0:00:16]} g6 {[%emt 0:00:18]} 5. e3 {[%emt 0:01:16]} Bg7 {[%emt 0:00:06]} 6. Nbd2 {[%emt 0:01:34] A80: Dutch Defence: Unusual White second moves.} O-O {[%emt 0:02:00]} 7. Be2 {[%emt 0:01:43]} Nc6 {[%emt 0:05:04]} 8. O-O {[%emt 0:00:42] The position is equal.} Qe8 {[%emt 0:00:19] [#]} 9. Bb5 $146 {[%emt 0:02:49]} ({Predecessor:} 9. c4 e5 10. d5 Nd8 11. e4 fxe4 12. Ng5 Bf5 13. g4 h6 14. gxf5 hxg5 15. fxg6 Qxg6 {0-1 (29) Solovchuk,A (2321)-Nguyen,H (1697) Chess.com INT 2021}) 9... a6 {[%emt 0:01:50]} 10. Bxc6 {[%emt 0:00:44]} Qxc6 {[%emt 0:00:07]} 11. c4 {[%emt 0:00:17]} e6 {[%emt 0:00:06]} 12. Rc1 {[%emt 0:00:37]} b6 {[%emt 0:02:10] Against c5} 13. c5 {[%emt 0:18:32]} Bb7 {[%emt 0:04:18]} 14. Nc4 {[%emt 0:15:28]} dxc5 {[%emt 0:15:14]} (14... b5 $5 {[%cal Rb5c4]} 15. Na5 Qe4 $11) 15. Nce5 {[%emt 0:18:12]} Qe4 {[%emt 0:18:00]} 16. dxc5 {[%emt 0:00:48][%cal Bd4c5,Bc5c6][%mdl 32] And now c6 would win.} Rad8 {[%emt 0:00:06]} (16... Rfd8 $14) 17. Qe2 $1 $16 {[%emt 0:01:25]} Ng4 {[%emt 0:01:11][%cal Rg4e5] [#]} 18. c6 $1 {[%emt 0:10:54]} Bxe5 {[%emt 0:09:03]} (18... Nxe5 $16 {keeps fighting.} 19. Bxe5 Bxc6 20. Bxg7 Kxg7) 19. Nxe5 $18 {[%emt 0:07:45]} Ba8 $2 {[%emt 0:04:19] [#]} (19... Bc8 $16) 20. Rc4 $1 {[%emt 0:04:20]} Qd5 {[%emt 0:00:15]} 21. Nxg4 {[%emt 0:01:58]} (21. Rxg4 $142 fxg4 22. Qxg4 (22. Nxg4 h5 $14)) 21... fxg4 {[%emt 0:00:11]} 22. Qxg4 {[%emt 0:00:21]} ({Not} 22. Rxg4 Qd2 23. Qxd2 Rxd2 $14) 22... b5 {[%emt 0:09:12]} 23. Re4 $40 {[%emt 0:01:47][%mdl 128] White goes for the king.} ({Better is} 23. Rc2 $18) 23... Rde8 {[%emt 0:01:47]} (23... Qf5 $16 {was worth a try.}) 24. Rd4 {[%emt 0:01:34]} Qxc6 {[%emt 0:00:03]} (24... Qf5 $16 25. Qh4 e5) 25. Rc1 {[%emt 0:00:08]} Qb7 {[%emt 0:00:44]} 26. Rd7 {[%emt 0:01:23]} Rf7 {[%emt 0:00:05] Against Rg7+} 27. Rxf7 {[%emt 0:00:45]} Kxf7 {[%emt 0:00:01]} 28. Qf4+ {[%emt 0:00:17]} Kg8 {[%emt 0:00:11][%csl Ga8][%cal Rb7g2]} 29. f3 {[%emt 0:00:05] Intending Qe5 and mate.} e5 {[%emt 0:02:28]} 30. Bxe5 {[%emt 0:01:37] Threatens to win with Qf6.} Rf8 {[%emt 0:00:22] Inhibits Qf6.} 31. Qh6 {[%emt 0:01:35][%csl Ge5][%cal Rh6g7]} Rf7 {[%emt 0:00:46] Against Qg7+} 32. Rd1 {[%emt 0:00:05] Prevents Qd5. Rd8+ would kill now.} Qc8 {[%emt 0:00:07] Inhibits Rd8+.} 33. Qg5 {[%emt 0:00:05] White threatens Rd8+ and mate.} Rf8 {[%emt 0:01:12] Prevents Rd8.} (33... Rd7 $18) 34. Qe7 {[%emt 0:00:07] Weighted Error Value: White=0.18 (very precise) /Black=0.79} 1-0